{"text_format":"3","workbook":"xlsx","n_sheets":2,"sheets":["Formulár ponuky","Rozdelenie nákladov"],"not_rendered":{"charts":1,"images":2,"defined_names":4},"read":"whole","date_system":"1900"}

{"sheet":"Formulár ponuky","index":0,"n_rows":48,"n_cols":7,"rows_kept":48,"merged":[[15,1,25,5],[29,1,31,5],[35,1,37,5],[43,1,45,5]]}
[]
[null,"FORMULÁR PONUKY STAVBY",{"$nulls":4}," "]
[]
[]
[null,"INFORMÁCIE O VLASTNÍKOVI",null,null,"INFORMÁCIE O STAVITEĽOVI"]
[null,"Meno","René Klčo",null,"Spoločnosť","Fabrikam, s. r. o."]
[null,"Adresa","Hlavná 123",null,"Meno","Robert Šimko"]
[null,"Mesto, PSČ","800 00  Bratislava",null,"Adresa","Južná 321"]
[null,"Telefón",8885550111,null,"Mesto, PSČ","800 00  Bratislava"]
[null,"E-mail","rene@proseware.com",null,"Telefón",8885550123]
[{"$nulls":4},"E-mail","jan@fabrikam.com"]
[null,"Názov projektu","Schodisko v budove",null,"Dátum dokončenia","2013-07-14"]
[]
[null,"ROZSAH PRÁC"]
[]
[null,"Sem uvedte rozsah prác projektu. Zdajte všetky požadované špecifikácie. Toto bude vzorový projekt výstavby väčšieho počtu schodov. Na konštrukciu rámu použijeme len rezivo s rozmermi 2 x 4 a 2 x 8 a trámové spojky. Schody sa narežú z materiálu s rozmermi 2 x 4. Použijeme najmenej 5 cm skrutky. Všetky klince budú mať dĺžku najmenej 7,62 cm. Konštrukčná hmotnosť schodu je minimálne 200 kg. Schody sa zarovnajú s domovými schodmi. Stúpadlo sa upevní k stavbe. Pracovníci dodávateľa zabezpečia vyčistenie priestorov."]
{"$rows_empty":11}
[null,"NEZAHRNUTÉ"]
[]
[null,"Nebude sa inštalovať žiadne zábradlie. Prípravu podlahy a maľovanie schodov zabezpečí majiteľ."]
[]
[]
[]
[null,"NÁVRH SPOLOČNOSTI"]
[]
[null,"My, spločnosť Fabrikam, s.r.o., navrhujeme vyššie uvedený rozsah prác, ktoré majú byť vykonané do 14. 7. 2011, v hodnote 364,51 EUR."]
[]
[]
[]
[null,"Vypracoval: (zástupca spoločnosti)",{"$nulls":3},"Dátum"]
[]
[null,"SÚHLAS VLASTNÍKA"]
[]
[null,"Ja, René Klčo, súhlasím s vyššie uvedeným rozsahom prác, ktoré majú byť vykonané do 14. 7. 2011, v hodnote 364,51 EUR."]
[]
[]
[]
[null,"Odsúhlasil: (majiteľ domu alebo splnomocnená osoba)",{"$nulls":3},"Dátum"]

{"sheet":"Rozdelenie nákladov","index":1,"n_rows":47,"n_cols":6,"rows_kept":47,"merged":[[42,3,42,4],[43,3,43,4],[44,3,44,4],[45,3,45,4],[46,3,46,4],[47,3,47,4],[48,3,48,4],[49,3,49,4]]}
[]
[null,"SÚHRN NÁKLADOV PONUKY",{"$nulls":3}," "]
[]
[]
[null,"ZOZNAM MATERIÁLOV A NÁKLADOV"]
[]
[null,"Množstvo","Popis","Náklady","Celkom"," "]
[null,5,"Rezivo 2 x 8 x 10",{"v":6.75,"d":"6.75 €"},{"$f":"PoložkyPonuky[Náklady]*PoložkyPonuky[Množstvo]","v":{"v":33.75,"d":"33.75 €"}},{"$f":"_xlfn.RANK.EQ(PoložkyPonuky[[#This Row],[Celkom]],PoložkyPonuky[Celkom])","v":4}]
[null,20,"Rezivo 2 x 4 x 10",{"v":4.97,"d":"4.97 €"},{"$f":"PoložkyPonuky[Náklady]*PoložkyPonuky[Množstvo]","v":{"v":99.39999999999999,"d":"99.40 €"}},{"$f":"_xlfn.RANK.EQ(PoložkyPonuky[[#This Row],[Celkom]],PoložkyPonuky[Celkom])","v":2}]
[null,30,"Trámové spojky",{"v":2.49,"d":"2.49 €"},{"$f":"PoložkyPonuky[Náklady]*PoložkyPonuky[Množstvo]","v":{"v":74.7,"d":"74.70 €"}},{"$f":"_xlfn.RANK.EQ(PoložkyPonuky[[#This Row],[Celkom]],PoložkyPonuky[Celkom])","v":3}]
[null,2,"Sada skrutiek, 5 cm",{"v":6.67,"d":"6.67 €"},{"$f":"PoložkyPonuky[Náklady]*PoložkyPonuky[Množstvo]","v":{"v":13.34,"d":"13.34 €"}},{"$f":"_xlfn.RANK.EQ(PoložkyPonuky[[#This Row],[Celkom]],PoložkyPonuky[Celkom])","v":6}]
[null,2,"Sada klincov, 7,62 cm",{"v":3.25,"d":"3.25 €"},{"$f":"PoložkyPonuky[Náklady]*PoložkyPonuky[Množstvo]","v":{"v":6.5,"d":"6.50 €"}},{"$f":"_xlfn.RANK.EQ(PoložkyPonuky[[#This Row],[Celkom]],PoložkyPonuky[Celkom])","v":7}]
[null,2,"Pár kožených rukavíc",{"v":7.75,"d":"7.75 €"},{"$f":"PoložkyPonuky[Náklady]*PoložkyPonuky[Množstvo]","v":{"v":15.5,"d":"15.50 €"}},{"$f":"_xlfn.RANK.EQ(PoložkyPonuky[[#This Row],[Celkom]],PoložkyPonuky[Celkom])","v":5}]
[null,2,"MZDOVÉ NÁKLADY",{"v":100,"d":"100.00 €"},{"$f":"PoložkyPonuky[Náklady]*PoložkyPonuky[Množstvo]","v":{"v":200,"d":"200.00 €"}},{"$f":"_xlfn.RANK.EQ(PoložkyPonuky[[#This Row],[Celkom]],PoložkyPonuky[Celkom])","v":1}]
[{"$nulls":4},{"$f":"PoložkyPonuky[Náklady]*PoložkyPonuky[Množstvo]","v":0},{"$f":"_xlfn.RANK.EQ(PoložkyPonuky[[#This Row],[Celkom]],PoložkyPonuky[Celkom])","v":8}]
[{"$nulls":4},{"$f":"PoložkyPonuky[Náklady]*PoložkyPonuky[Množstvo]","v":0},{"$f":"_xlfn.RANK.EQ(PoložkyPonuky[[#This Row],[Celkom]],PoložkyPonuky[Celkom])","v":8}]
[{"$nulls":4},{"$f":"PoložkyPonuky[Náklady]*PoložkyPonuky[Množstvo]","v":0},{"$f":"_xlfn.RANK.EQ(PoložkyPonuky[[#This Row],[Celkom]],PoložkyPonuky[Celkom])","v":8}]
[{"$nulls":4},{"$f":"PoložkyPonuky[Náklady]*PoložkyPonuky[Množstvo]","v":0},{"$f":"_xlfn.RANK.EQ(PoložkyPonuky[[#This Row],[Celkom]],PoložkyPonuky[Celkom])","v":8}]
[{"$nulls":4},{"$f":"PoložkyPonuky[Náklady]*PoložkyPonuky[Množstvo]","v":0},{"$f":"_xlfn.RANK.EQ(PoložkyPonuky[[#This Row],[Celkom]],PoložkyPonuky[Celkom])","v":8}]
[{"$nulls":4},{"$f":"PoložkyPonuky[Náklady]*PoložkyPonuky[Množstvo]","v":0},{"$f":"_xlfn.RANK.EQ(PoložkyPonuky[[#This Row],[Celkom]],PoložkyPonuky[Celkom])","v":8}]
[{"$nulls":4},{"$f":"PoložkyPonuky[Náklady]*PoložkyPonuky[Množstvo]","v":0},{"$f":"_xlfn.RANK.EQ(PoložkyPonuky[[#This Row],[Celkom]],PoložkyPonuky[Celkom])","v":8}]
[{"$nulls":4},{"$f":"PoložkyPonuky[Náklady]*PoložkyPonuky[Množstvo]","v":0},{"$f":"_xlfn.RANK.EQ(PoložkyPonuky[[#This Row],[Celkom]],PoložkyPonuky[Celkom])","v":8}]
[{"$nulls":4},{"$f":"PoložkyPonuky[Náklady]*PoložkyPonuky[Množstvo]","v":0},{"$f":"_xlfn.RANK.EQ(PoložkyPonuky[[#This Row],[Celkom]],PoložkyPonuky[Celkom])","v":8}]
[{"$nulls":4},{"$f":"PoložkyPonuky[Náklady]*PoložkyPonuky[Množstvo]","v":0},{"$f":"_xlfn.RANK.EQ(PoložkyPonuky[[#This Row],[Celkom]],PoložkyPonuky[Celkom])","v":8}]
[{"$nulls":4},{"$f":"PoložkyPonuky[Náklady]*PoložkyPonuky[Množstvo]","v":0},{"$f":"_xlfn.RANK.EQ(PoložkyPonuky[[#This Row],[Celkom]],PoložkyPonuky[Celkom])","v":8}]
[{"$nulls":4},{"$f":"PoložkyPonuky[Náklady]*PoložkyPonuky[Množstvo]","v":0},{"$f":"_xlfn.RANK.EQ(PoložkyPonuky[[#This Row],[Celkom]],PoložkyPonuky[Celkom])","v":8}]
[{"$nulls":4},{"$f":"PoložkyPonuky[Náklady]*PoložkyPonuky[Množstvo]","v":0},{"$f":"_xlfn.RANK.EQ(PoložkyPonuky[[#This Row],[Celkom]],PoložkyPonuky[Celkom])","v":8}]
[{"$nulls":4},{"$f":"PoložkyPonuky[Náklady]*PoložkyPonuky[Množstvo]","v":0},{"$f":"_xlfn.RANK.EQ(PoložkyPonuky[[#This Row],[Celkom]],PoložkyPonuky[Celkom])","v":8}]
[{"$nulls":4},{"$f":"PoložkyPonuky[Náklady]*PoložkyPonuky[Množstvo]","v":0},{"$f":"_xlfn.RANK.EQ(PoložkyPonuky[[#This Row],[Celkom]],PoložkyPonuky[Celkom])","v":8}]
[{"$nulls":4},{"$f":"PoložkyPonuky[Náklady]*PoložkyPonuky[Množstvo]","v":0},{"$f":"_xlfn.RANK.EQ(PoložkyPonuky[[#This Row],[Celkom]],PoložkyPonuky[Celkom])","v":8}]
[1,{"$nulls":3},{"$f":"PoložkyPonuky[Náklady]*PoložkyPonuky[Množstvo]","v":0},{"$f":"_xlfn.RANK.EQ(PoložkyPonuky[[#This Row],[Celkom]],PoložkyPonuky[Celkom])","v":8}]
[2,null,null,"Medzisúčet",{"$f":"SUBTOTAL(109,PoložkyPonuky[Celkom])","v":{"v":443.18999999999994,"d":"443.19 €"}},{"$f":"SUBTOTAL(109,PoložkyPonuky[[ ]])","v":164}]
[4,null,null,"Sadzba dane",{"v":0.075,"d":"7.50%"}]
[5,null,null,"Daň",{"$f":"DaňováSadzba*PoložkyPonuky[[#Totals],[Celkom]]","v":{"v":33.23924999999999,"d":"33.24 €"}}]
[{"$nulls":3},"Celkový súčet",{"$f":"Daň+PoložkyPonuky[[#Totals],[Celkom]]","v":{"v":476.4292499999999,"d":"476.43 €"}}]
[]
[]
[]
[null,"ROZPIS MATERIÁLOV A NÁKLADOV"]
[]
[]
[null,null,"CELKOM","POZNÁMKY"]
[null,{"$f":"INDEX(PoložkyPonuky[],MATCH(A31,PoložkyPonuky[[ ]],0),2)","v":"MZDOVÉ NÁKLADY"},{"$f":"INDEX(PoložkyPonuky[],MATCH(A31,PoložkyPonuky[[ ]],0),4)","v":{"v":200,"d":"$200.00"}}]
[null,{"$f":"INDEX(PoložkyPonuky[],MATCH(A32,PoložkyPonuky[[ ]],0),2)","v":"Rezivo 2 x 4 x 10"},{"$f":"INDEX(PoložkyPonuky[],MATCH(A32,PoložkyPonuky[[ ]],0),4)","v":{"v":99.39999999999999,"d":"$99.40"}}]
[null,{"$f":"INDEX(PoložkyPonuky[],MATCH(A33,PoložkyPonuky[[ ]],0),2)","v":"Rezivo 2 x 8 x 10"},{"$f":"INDEX(PoložkyPonuky[],MATCH(A33,PoložkyPonuky[[ ]],0),4)","v":{"v":33.75,"d":"$33.75"}}]
[null,{"$f":"INDEX(PoložkyPonuky[],MATCH(A33,PoložkyPonuky[[ ]],0),2)","v":"Rezivo 2 x 8 x 10"},{"$f":"INDEX(PoložkyPonuky[],MATCH(A33,PoložkyPonuky[[ ]],0),4)","v":{"v":33.75,"d":"$33.75"}}]
[null,{"$f":"INDEX(PoložkyPonuky[],MATCH(A34,PoložkyPonuky[[ ]],0),2)","v":"Pár kožených rukavíc"},{"$f":"INDEX(PoložkyPonuky[],MATCH(A34,PoložkyPonuky[[ ]],0),4)","v":{"v":15.5,"d":"$15.50"}}]